bitfinex/quotes_ETHUSD_20250529
["timestamp","ask_amount","ask_price","bid_price","bid_amount"]
[1748546899297,1.1332,2642.1,2641.6,10.0]
[1748546899502,1.1332,2642.1,2641.5,16.562141]
[1748546899698,1.1332,2642.1,2641.6,10.0]
[1748546900010,1.1332,2642.1,2641.5,2.266757]
[1748546900176,1.1332,2642.1,2641.6,4.03698769]
[1748546900376,1.1332,2642.1,2641.6,4.359431]
[1748546900618,1.1332,2642.1,2641.4,6.96500352]
[1748546901903,1.1332,2642.1,2641.4,0.514]
[1748546902101,1.1332,2642.1,2640.8,4.53938689]
[1748546902437,4.072,2642.3,2640.7,1.91175902]
[1748546902438,1.1327,2641.9,2641.1,10.0]
[1748546902576,1.1327,2641.9,2641.2,10.0]
[1748546902781,1.1327,2641.9,2640.8,10.514]
[1748546903003,1.1327,2641.9,2640.9,6.156274]
[1748546903226,1.1327,2641.9,2640.8,0.514]
[1748546903227,1.1327,2641.9,2641.1,10.0]
[1748546903422,1.1327,2641.9,2641.3,10.0]
[1748546903717,1.1327,2641.9,2641.5,6.45070863]
[1748546903902,1.1327,2641.9,2641.5,1.91175902]
[1748546905120,1.1327,2641.9,2641.1,10.514]
[1748546905302,1.1327,2641.9,2641.3,10.0]
[1748546905505,5.2007,2641.9,2641.5,10.0]
[1748546906215,5.2007,2641.9,2641.4,6.326348]
[1748546906415,5.2007,2641.9,2641.5,10.0]
[1748546906589,5.2007,2641.9,2641.4,4.01484]
[1748546906997,5.2007,2641.9,2641.4,3.174939]
[1748546907680,5.2007,2641.9,2641.3,11.90828371]
[1748546907918,5.2007,2641.9,2641.3,1.90828371]
[1748546908221,1.1307,2641.8,2641.3,1.90828371]
[1748546909086,1.1307,2641.8,2641.1,0.514]
[1748546909425,1.2348,2641.7,2641.1,0.514]
[1748546910095,1.2348,2641.7,2641.1,10.514]
[1748546910322,1.2348,2641.7,2641.1,0.514]
[1748546910688,1.2348,2641.7,2640.9,9.150369]
[1748546911195,1.2348,2641.7,2640.9,13.69059925]
[1748546911395,1.2348,2641.7,2641.0,10.0]
[1748546911615,1.2348,2641.7,2640.9,4.54023025]
[1748546911616,1.2348,2641.7,2641.1,10.0]
[1748546912021,1.2348,2641.7,2640.9,4.54023025]
[1748546912022,1.2348,2641.7,2641.0,10.0]
[1748546912623,1.2348,2641.7,2641.1,10.0]
[1748546912832,1.2348,2641.7,2640.9,19.150369]
[1748546913150,1.2348,2641.7,2640.9,9.150369]
[1748546913797,1.2348,2641.7,2641.0,9.150369]
[1748546914935,1.2348,2641.7,2641.1,4.54029697]
[1748546914936,4.066,2641.6,2641.1,4.54029697]
[1748546915111,4.066,2641.5,2641.1,4.54029697]
[1748546915306,4.066,2641.5,2641.0,9.150369]
[1748546915307,1.1569,2641.4,2641.0,10.0]
[1748546915521,1.1569,2641.4,2641.1,10.0]
[1748546915739,1.1569,2641.4,2640.9,9.150369]
[1748546919847,4.065,2641.3,2641.0,10.0]
[1748546921018,1.1569,2641.4,2641.1,10.0]
[1748546921220,4.065,2641.3,2641.0,8.513837]
[1748546921663,1.222,2642.1,2641.3,9.150369]
[1748546921861,1.222,2642.1,2641.7,1.90828371]
[1748546922161,5.286,2642.1,2641.7,1.90828371]
[1748546922527,1.222,2642.1,2641.8,9.150369]
[1748546922728,4.064,2642.3,2642.0,10.0]
[1748546923039,1.124,2643.3,2641.7,2.42228371]
[1748546923040,1.222,2643.3,2642.3,12.5202]
[1748546923243,4.064,2643.2,2642.3,10.0]
[1748546923567,4.064,2643.2,2642.1,1.90828371]
[1748546923568,5.286,2643.1,2642.5,10.0]
[1748546923865,4.064,2643.0,2642.2,9.150369]
[1748546924184,4.5926,2643.0,2642.4,16.020983]
[1748546924331,0.5286,2643.0,2642.5,3.906983]
[1748546924671,4.064,2642.9,2642.5,3.906983]
[1748546924870,1.222,2643.1,2642.5,3.906983]
[1748546925030,4.063,2642.8,2642.4,19.150369]
[1748546925366,4.063,2642.8,2642.4,9.150369]
[1748546925863,1.222,2642.7,2642.4,10.0]
[1748546926030,1.222,2642.7,2642.4,2.519922]
[1748546926529,4.063,2642.8,2642.5,10.0]
[1748546926757,4.063,2642.8,2642.5,4.12844]
[1748546927192,1.1292,2643.0,2642.5,4.12844]
[1748546927394,4.062,2642.9,2642.5,4.12844]
[1748546927923,4.062,2642.9,2642.5,3.713341]
[1748546928281,4.062,2642.9,2642.4,4.37544]
[1748546929014,4.062,2642.9,2642.4,4.017341]
[1748546929569,1.2153,2642.8,2642.0,0.514]
[1748546929821,1.2153,2642.8,2642.1,5.976685]
[1748546929983,1.2153,2642.8,2642.0,0.514]
[1748546930325,1.2153,2642.8,2642.1,3.894977]
[1748546930470,1.1647,2642.6,2642.1,3.894977]
[1748546931923,1.1647,2642.6,2642.2,4.649057]
[1748546932082,1.1647,2642.6,2642.3,9.150369]
[1748546932083,4.061,2642.5,2642.3,9.150369]
[1748546932414,4.061,2642.5,2642.3,3.313073]
[1748546932724,4.061,2642.5,2642.2,9.150369]
[1748546933636,4.061,2642.5,2642.1,6.4461132]
[1748546934249,1.2121,2642.4,2642.0,0.514]
[1748546934539,1.2121,2642.4,2641.6,1.119]
[1748546934699,1.2121,2642.4,2641.6,1.633]
[1748546934882,1.2121,2642.4,2641.7,11.343638]
[1748546935088,1.2121,2642.4,2641.7,4.616092]
[1748546935323,1.1716,2643.0,2642.3,1.90710798]
[1748546935622,1.1716,2643.0,2642.4,2.845674]
[1748546935821,5.2316,2643.0,2642.4,2.845674]
[1748546936130,5.2316,2643.0,2642.4,0.4752782]
[1748546936280,5.2316,2643.0,2642.3,1.90710798]
[1748546937036,5.2316,2643.0,2642.3,11.90710798]
[1748546937618,5.2316,2643.0,2642.4,10.0]
[1748546937985,5.2316,2643.0,2642.3,11.90710798]
[1748546938618,5.2316,2643.0,2642.4,10.0]
[1748546938927,5.2316,2643.0,2642.3,11.90710798]
[1748546939089,5.2316,2643.0,2642.4,10.0]
[1748546939996,5.2316,2643.0,2642.3,11.90710798]
[1748546941619,5.2316,2643.0,2642.3,1.90710798]
[1748546943156,5.2316,2643.0,2642.2,5.05143155]
[1748546943157,1.1053,2642.9,2642.2,0.514]
[1748546943358,1.1053,2642.7,2641.4,1.90710798]
[1748546943650,0.55,2642.4,2641.0,1.119]
[1748546943825,1.1053,2642.2,2641.0,1.633]
[1748546944028,1.1053,2642.0,2641.0,1.633]
[1748546944442,1.1053,2642.0,2641.2,4.53939447]
[1748546946875,1.1053,2642.0,2641.3,1.90710798]
[1748546947665,1.1053,2642.0,2641.2,4.53963087]
[1748546948340,1.1053,2642.0,2641.7,1.90710798]
[1748546948545,5.1613,2642.0,2641.7,1.90710798]
[1748546949447,5.1613,2642.0,2641.4,4.53942926]
[1748546949646,4.056,2641.9,2641.4,4.53942926]
[1748546950157,4.056,2641.9,2641.5,4.53942926]
[1748546950676,1.1053,2642.0,2641.5,4.53942926]
[1748546950867,4.056,2641.9,2641.5,4.53942926]
[1748546952880,1.1472,2642.5,2641.7,1.90710798]
[1748546953080,4.055,2642.4,2641.7,1.90710798]
[1748546953279,4.055,2642.3,2641.7,1.90710798]
[1748546953579,4.055,2642.3,2641.6,1.90710798]
[1748546953777,1.1472,2642.5,2641.6,1.90710798]
[1748546953942,4.055,2642.4,2641.9,4.53844307]
[1748546954142,4.055,2642.3,2641.9,4.53844307]
[1748546954364,1.1472,2642.2,2641.6,1.90710798]
[1748546956098,1.1472,2642.2,2641.4,6.44797777]
[1748546957786,4.054,2642.1,2641.4,6.44797777]
[1748546957964,4.054,2642.1,2641.5,0.64479778]
[1748546959303,4.054,2642.1,2641.5,1.90840339]
[1748546959483,4.054,2642.1,2641.5,6.44762177]
[1748546959685,1.1976,2642.0,2641.5,6.44762177]
[1748546960609,1.1976,2642.0,2641.5,1.90840339]
[1748546961810,1.1976,2641.9,2641.5,1.90840339]
[1748546962726,4.053,2641.8,2641.5,1.90840339]
[1748546964895,1.1976,2641.7,2641.2,0.514]
[1748546965076,1.1976,2641.7,2641.0,1.119]
[1748546965410,4.053,2641.8,2641.0,1.119]
[1748546965411,1.1976,2641.5,2641.0,1.119]
[1748546965973,1.1976,2641.5,2641.2,1.90840339]
[1748546966205,1.1976,2641.5,2641.2,6.44883096]
[1748546967513,1.191,2642.3,2641.4,4.54042757]
[1748546967715,1.191,2642.3,2641.7,6.44746338]
[1748546967885,4.052,2642.2,2641.7,6.44746338]
[1748546968416,4.052,2642.1,2641.7,6.44746338]
[1748546969521,4.052,2642.1,2641.7,1.90840339]
[1748546970216,1.191,2642.3,2641.7,1.90840339]
[1748546970519,1.191,2642.3,2641.8,4.53905999]
[1748546970826,4.051,2642.2,2641.8,4.53905999]
[1748546971117,5.242,2642.3,2641.9,4.53872834]
[1748546971522,1.191,2642.3,2641.9,4.53872834]
[1748546971721,1.191,2642.3,2642.1,6.44713173]
[1748546972618,1.191,2642.3,2641.3,0.514]
[1748546972946,1.191,2642.3,2641.5,1.90840339]
[1748546973142,0.55,2643.1,2641.5,1.90840339]
[1748546973143,1.2157,2642.1,2641.5,1.90840339]
[1748546973453,5.2667,2642.1,2641.5,1.90840339]
[1748546973744,5.2667,2642.1,2641.6,0.19084034]
[1748546973942,5.2667,2642.1,2641.6,4.73004551]
[1748546975009,5.2667,2642.1,2641.7,4.53920517]
[1748546975208,1.2157,2642.1,2641.7,4.53920517]
[1748546979056,1.2157,2642.1,2642.0,4.53850068]
[1748546979231,1.224,2642.4,2641.9,1.90840339]
[1748546980414,1.224,2642.4,2641.7,10.0]
[1748546980415,1.224,2642.4,2642.0,4.53837166]
[1748546981511,1.224,2642.4,2641.6,1.90840339]
[1748546981875,1.224,2642.4,2641.6,6.44696356]
[1748546981876,1.1536,2642.3,2641.6,6.44696356]
[1748546982068,1.1536,2642.3,2641.8,10.0]
[1748546982224,1.1536,2642.3,2641.8,14.824991]
[1748546982423,1.1536,2642.3,2641.7,14.933216]
[1748546982731,1.1536,2642.3,2641.6,1.90840339]
[1748546982937,1.1536,2642.3,2641.8,4.53878014]
[1748546984338,1.1536,2642.3,2641.6,6.44726867]
[1748546984675,1.1536,2642.3,2641.6,1.90840339]
[1748546985264,1.1536,2642.3,2641.6,6.44726867]
[1748546985471,1.1536,2642.3,2641.7,4.53886528]
[1748546986073,1.1536,2642.3,2641.8,4.53886528]
[1748546986247,1.1536,2642.3,2642.0,4.53886528]
[1748546987573,1.1536,2642.3,2641.9,4.53886528]
[1748546988180,0.55,2643.3,2641.6,1.90840339]
[1748546988181,1.2075,2642.5,2642.2,6.44694393]
[1748546988352,4.046,2643.1,2642.3,2.4713]
[1748546988556,1.2075,2643.0,2642.3,2.4713]
[1748546989245,1.2075,2643.0,2642.2,1.90840339]
[1748546989444,1.2075,2643.0,2642.3,4.53756215]
[1748546990354,1.2075,2643.0,2642.4,4.53756215]
[1748546991898,1.2075,2643.0,2642.1,1.90840339]
[1748546992204,1.2075,2643.0,2642.2,14.53767318]
[1748546992709,5.2515,2643.0,2642.2,14.53767318]
[1748546993135,5.2515,2643.0,2642.4,4.53774493]
[1748546994121,5.2515,2643.0,2642.3,4.53774493]
[1748546994440,1.1983,2642.9,2642.3,4.53774493]
[1748546995910,4.56915,2643.0,2641.9,0.514]
[1748546995911,1.1666,2642.7,2641.9,0.514]
[1748546996070,1.1666,2642.7,2641.6,1.90840339]
[1748546997105,1.1666,2642.7,2641.8,4.53914705]
[1748547000395,1.1666,2642.7,2641.7,1.90840339]
[1748547000596,1.1666,2642.7,2641.7,6.44721812]
[1748547001270,1.1666,2642.7,2641.7,2.55240278]
[1748547001471,1.1666,2642.7,2642.2,4.53881473]
[1748547001925,1.1666,2642.7,2642.1,1.90840339]
[1748547004697,1.1666,2642.7,2641.8,10.514]
[1748547004890,1.1666,2642.7,2641.8,0.514]
[1748547005090,1.2271,2642.5,2641.8,0.514]
[1748547006121,1.2271,2642.5,2641.7,1.90840339]
[1748547006332,1.2271,2642.5,2641.7,6.44721812]
[1748547009708,1.2271,2642.5,2641.5,15.05304191]
[1748547010131,1.1528,2642.3,2641.5,0.514]
[1748547010502,0.55,2642.3,2640.8,3.01840339]
[1748547010702,1.1528,2642.0,2640.8,3.53240339]
[1748547010922,1.1528,2641.8,2640.8,3.53240339]
[1748547011167,1.1528,2641.8,2641.2,6.44787248]
[1748547011303,1.1528,2641.8,2641.6,1.90840339]
[1748547011502,1.2115,2642.9,2641.6,1.90840339]
[1748547011751,1.2115,2642.7,2641.6,1.90840339]
[1748547012109,1.2217,2642.5,2641.6,1.90840339]
[1748547014550,4.039,2642.4,2641.7,4.53897718]
[1748547014850,1.1633,2642.3,2641.6,6.44738057]
[1748547016456,1.1633,2642.3,2641.7,4.53873555]
[1748547016841,1.1633,2642.3,2642.0,1.90840339]
[1748547017068,4.038,2642.6,2642.0,1.90840339]
[1748547017271,4.038,2642.6,2642.0,0.19084034]
[1748547017272,1.2402,2642.5,2642.0,0.19084034]
[1748547017469,1.2402,2642.5,2641.6,1.93220339]
[1748547017985,1.2402,2642.5,2641.9,4.53862694]
[1748547021385,1.2147,2643.1,2642.4,4.53803055]
[1748547021538,1.2147,2643.1,2642.7,1.90840339]
[1748547021883,0.36075452,2643.2,2642.9,10.0]
[1748547022103,1.2147,2643.7,2643.4,1.90840339]
[1748547023159,1.2147,2643.7,2643.1,4.53609236]
[1748547023363,1.2147,2643.7,2643.0,16.44449575]
[1748547023663,1.2147,2643.7,2643.0,6.44449575]
[1748547024062,1.2147,2643.7,2643.0,1.90840339]
[1748547024287,1.2147,2643.7,2643.0,11.90840339]
[1748547024471,1.2147,2643.7,2643.0,1.90840339]
[1748547024683,1.2147,2643.7,2643.0,6.44449575]
[1748547027113,1.2147,2643.7,2643.2,4.53634696]
[1748547027501,1.2147,2643.7,2643.1,4.53634696]
[1748547028624,0.55,2644.5,2642.8,1.6478]
[1748547028625,1.1786,2644.4,2643.5,4.53617019]
[1748547028788,4.035,2644.0,2643.4,1.90840339]
[1748547029105,1.1786,2643.9,2643.4,1.90840339]
[1748547029733,1.1786,2644.6,2643.8,6.44361914]
[1748547029937,1.1786,2644.6,2643.8,1.90840339]
[1748547031022,1.1786,2644.6,2644.0,4.53452777]
[1748547031803,1.82909071,2646.2,2644.0,4.53452777]
[1748547031804,1.1914,2645.1,2644.4,24.634072]
[1748547032006,4.033,2645.7,2644.6,11.90840339]
[1748547032291,4.033,2645.7,2644.5,1.104]
[1748547032292,1.5947,2645.6,2645.0,1.90840339]
[1748547033232,1.5947,2645.6,2645.0,6.44140469]
[1748547033807,1.1914,2645.6,2645.0,6.44140469]
[1748547034134,1.1914,2645.6,2644.9,6.43622439]
[1748547034435,1.1914,2645.6,2644.5,1.104]
[1748547034436,0.55,2645.3,2644.1,1.104]
[1748547034649,1.1914,2645.2,2644.1,1.104]
[1748547034992,1.1914,2645.2,2644.0,1.90307344]
[1748547035435,1.1914,2645.2,2644.0,6.43775569]
[1748547035612,0.55,2645.1,2644.0,6.43775569]
[1748547035917,1.1914,2644.9,2644.1,0.23716639]
[1748547036129,1.71374,2644.8,2644.1,0.23716639]
[1748547038761,1.1914,2644.7,2644.1,0.23716639]
[1748547041537,4.03,2644.6,2644.1,0.23716639]
[1748547041746,1.1914,2644.5,2644.1,0.23716639]
[1748547043572,5.2204,2644.5,2644.1,0.23716639]
[1748547043766,0.52204,2644.4,2644.1,0.23716639]
[1748547043973,0.52204,2644.4,2644.1,4.77233704]
[1748547044261,1.1914,2644.6,2644.1,4.77233704]
[1748547044462,1.1914,2644.6,2644.1,0.23716639]
[1748547044678,4.7,2645.2,2644.3,1.90307344]
[1748547045004,1.104,2645.7,2644.7,1.90307344]
[1748547045005,1.2247,2644.9,2644.7,1.90307344]
[1748547045286,1.2247,2645.2,2644.7,1.90307344]
[1748547045501,0.52537,2645.1,2644.7,1.90307344]
[1748547045698,0.52537,2645.1,2644.3,5.63769394]
[1748547045996,1.2247,2645.0,2644.2,1.104]
[1748547046189,1.2247,2645.0,2644.1,0.23716639]
[1748547046394,0.52537,2645.1,2644.1,0.23716639]
[1748547046395,1.2194,2644.8,2644.1,0.23716639]
[1748547047357,0.55,2644.7,2644.1,0.23716639]
[1748547047604,0.55,2644.4,2644.1,0.23716639]
[1748547047778,1.2194,2644.2,2644.1,0.23716639]
[1748547047982,1.74414,2644.2,2644.1,0.23716639]
[1748547048911,5.77214,2644.2,2644.1,0.23716639]
[1748547050597,1.74414,2644.2,2644.1,0.23716639]
[1748547050785,1.2194,2644.2,2644.1,0.23716639]
[1748547052419,1.2384,2644.5,2644.1,0.23716639]
[1748547052719,1.104,2645.5,2644.4,1.90307344]
[1748547052720,1.2384,2645.3,2644.4,1.90307344]
[1748547052875,4.028,2645.0,2644.4,1.90307344]
[1748547053299,1.2384,2645.3,2644.4,1.90307344]
[1748547053512,1.2384,2645.3,2644.5,0.20670734]
[1748547053676,1.2384,2645.3,2644.5,4.74063819]
[1748547054277,1.2384,2646.0,2644.8,1.90307344]
[1748547054584,1.2384,2645.8,2644.8,1.90307344]
[1748547054785,0.52654,2645.7,2644.8,1.90307344]
[1748547055576,0.52654,2645.7,2644.8,6.43628684]
[1748547055778,1.2384,2645.8,2644.9,4.54955296]
[1748547056031,1.2081,2646.3,2645.2,1.90307344]
[1748547056352,4.027,2646.2,2645.2,1.90307344]
[1748547056491,4.026,2646.2,2645.2,1.90307344]
[1748547056842,4.026,2646.1,2645.2,1.90307344]
[1748547057056,4.026,2646.2,2645.5,4.53252911]
[1748547057508,5.2341,2646.3,2645.4,4.53224596]
[1748547059849,1.2081,2646.3,2645.4,4.5322797]
[1748547060146,1.2081,2646.3,2645.3,0.20670734]
[1748547060147,1.2081,2646.3,2645.6,1.90307344]
[1748547060345,0.55,2647.0,2645.6,1.90307344]
[1748547060346,4.025,2646.4,2645.6,1.90307344]
[1748547060543,4.025,2646.4,2645.7,0.19030734]
[1748547061008,2.79104026,2646.6,2645.7,0.19030734]
[1748547061213,2.79104026,2646.6,2645.8,0.0164]
[1748547061457,2.79104026,2646.6,2646.0,1.90307344]
[1748547061458,1.58294026,2646.6,2646.0,1.90307344]
[1748547061744,1.58294026,2646.6,2646.4,6.43397448]
[1748547061936,1.58294026,2646.6,2646.2,0.0164]
[1748547062642,3.77629323,2648.1,2646.2,0.0164]
[1748547062643,1.2466,2648.2,2647.0,1.90307344]
[1748547062933,1.2466,2648.1,2647.0,0.0164]
[1748547063098,0.55,2647.9,2647.0,0.0164]
[1748547063429,0.52706,2648.0,2647.0,0.0164]
[1748547064506,0.55,2647.9,2647.0,0.0164]
[1748547064701,1.2466,2648.1,2646.9,1.1]
[1748547064702,1.2175,2649.0,2647.4,1.90307344]
[1748547064904,1.2175,2649.0,2647.8,1.90307344]
[1748547065133,4.023,2649.1,2647.5,0.0164]
[1748547065134,1.2175,2648.8,2647.5,0.0164]
[1748547065333,1.2175,2648.8,2647.3,0.6]
[1748547065546,1.2175,2648.7,2647.3,0.6]
[1748547065847,0.55,2648.5,2647.3,0.6]
[1748547066301,1.2175,2648.6,2647.3,0.6]
[1748547066499,5.2395,2648.6,2647.4,0.25194734]
[1748547066928,1.2175,2648.6,2647.5,0.0164]
[1748547067136,4.022,2648.5,2647.5,0.0164]
[1748547067317,1.2175,2648.6,2647.5,0.0164]
[1748547067518,4.022,2648.5,2647.5,0.0164]
[1748547067720,0.52395,2648.4,2647.5,0.0164]
[1748547068723,1.2175,2648.6,2647.5,0.0164]
[1748547068908,5.2385,2648.6,2647.7,1.90307344]
[1748547069110,5.2385,2648.6,2647.7,6.43147305]
[1748547069982,3.77600724,2648.3,2644.2,0.3953]
[1748547070249,1.1556,2648.5,2643.7,0.78034462]
[1748547070250,0.55,2646.1,2645.0,0.31560779]
[1748547070450,1.1556,2645.8,2645.0,0.31560779]
[1748547070747,2.50245766,2645.7,2645.0,0.31560779]
[1748547070932,0.55,2645.5,2645.0,0.31560779]
[1748547071136,0.55,2645.7,2645.0,0.31560779]
[1748547071137,0.55,2645.3,2645.0,0.31560779]
[1748547071849,0.55,2645.1,2645.0,0.31560779]
[1748547072045,0.55,2645.3,2645.0,0.31560779]
[1748547072245,4.33029758,2645.3,2645.0,0.31560779]
[1748547072407,0.55,2645.1,2645.0,0.31560779]
[1748547072608,4.3305754,2645.1,2645.0,0.31560779]
[1748547072868,4.3305754,2645.1,2643.7,0.1402]
[1748547072869,5.53750336,2645.1,2643.7,0.1402]
[1748547073067,5.53750336,2645.1,2644.1,0.5528816]
[1748547073068,0.55,2644.9,2644.1,0.5528816]
[1748547073208,1.2165,2644.8,2644.1,0.5528816]
[1748547073542,4.33118132,2644.7,2644.1,0.5528816]
[1748547073716,0.55,2644.1,2642.8,0.1402]
[1748547073910,1.2165,2643.9,2642.8,0.1402]
[1748547075026,1.2165,2643.9,2642.4,0.3773]
[1748547075259,4.99884648,2643.9,2642.4,0.3773]
[1748547075966,0.55,2643.7,2642.4,0.3773]
[1748547076961,4.33246764,2643.8,2642.4,0.3773]
[1748547077308,4.33287748,2643.5,2641.8,0.3773]
[1748547077482,0.55,2643.5,2641.9,3.688218]
[1748547077767,4.33288622,2643.5,2641.9,3.688218]
[1748547078078,0.55,2643.5,2641.8,0.3773]
[1748547078436,4.063,2643.4,2641.8,0.3773]
[1748547078620,4.063,2643.4,2641.9,3.954071]
[1748547078991,4.063,2643.4,2641.9,8.252498]
[1748547079115,0.4613,2643.3,2641.9,8.252498]
[1748547080165,0.4613,2643.3,2641.8,10.3773]
[1748547080327,0.4613,2643.3,2641.8,0.3773]
[1748547080859,4.33334183,2643.2,2641.8,0.3773]
[1748547081023,0.4613,2643.3,2641.6,11.1]
[1748547081024,0.55,2642.8,2641.6,1.1]
[1748547081222,1.2225,2642.5,2641.6,1.1]
[1748547081465,4.07,2642.4,2641.6,1.1]
[1748547082020,4.07,2642.4,2641.4,0.3773]
[1748547082477,4.07,2642.4,2641.0,0.3773]
[1748547082678,4.07,2642.4,2640.2,10.0]
[1748547082679,0.55,2642.1,2640.4,0.3773]
[1748547082979,0.55512674,2642.0,2640.4,0.3773]
[1748547083374,0.55,2641.9,2640.4,0.3773]
[1748547083583,2.3164,2642.2,2640.4,0.3773]
[1748547083584,0.55,2642.1,2640.4,0.3773]
[1748547083876,0.55,2642.1,2640.5,2.498988]
[1748547084237,1.2164,2642.2,2640.3,10.0]
[1748547084238,1.2164,2642.2,2640.8,1.90703688]
[1748547084584,5.3064,2642.2,2641.0,6.035939]
[1748547084886,5.83704,2642.2,2641.1,1.136]
[1748547085633,5.83704,2642.2,2641.0,1.136]
[1748547086300,0.55,2642.1,2641.0,1.136]
[1748547086894,0.55,2642.1,2640.6,1.136]
[1748547088044,0.55,2641.9,2640.6,1.136]
[1748547089091,1.2257,2641.8,2640.0,0.19749358]
[1748547089296,3.78502338,2642.0,2640.0,0.19749358]
[1748547089297,0.55,2641.5,2640.0,1.137]
[1748547089732,1.2257,2641.6,2640.0,1.137]
[1748547090020,1.2257,2641.6,2640.1,2.68386979]
[1748547090227,1.2257,2641.6,2640.2,13.953805]
[1748547090427,4.088,2641.5,2640.3,10.0]
[1748547090722,4.088,2641.5,2640.1,2.68386979]
[1748547091106,0.55,2641.4,2640.0,1.137]
[1748547091300,1.2257,2641.3,2640.0,1.137]
[1748547092358,1.2257,2641.3,2639.5,0.39517609]
[1748547092359,4.33648506,2641.0,2639.5,0.19768903]
[1748547092487,1.137,2641.2,2639.5,0.19768903]
[1748547092488,0.55,2640.6,2639.5,0.19768903]
[1748547092691,1.1751,2640.4,2639.5,0.19768903]
[1748547092895,0.55,2640.3,2639.5,0.19768903]
[1748547093643,0.55,2640.3,2638.8,0.54606562]
[1748547093827,1.1751,2640.2,2638.8,2.971779]
[1748547094027,1.1751,2640.2,2638.7,1.137]
[1748547095084,1.1751,2640.2,2638.8,11.107416]
[1748547095289,1.1751,2640.2,2638.8,9.91310488]
[1748547095528,1.1751,2640.2,2639.2,1.90703688]
[1748547095688,1.137,2640.7,2639.2,1.90703688]
[1748547095689,1.2677,2640.6,2639.3,21.292685]
[1748547095894,1.2677,2640.6,2639.3,20.867117]
[1748547096438,1.2677,2641.2,2639.7,17.709929]
[1748547096730,4.091,2641.1,2639.7,1.137]
[1748547097025,4.091,2641.1,2639.8,2.340869]
[1748547097412,1.2677,2641.2,2639.8,2.340869]
[1748547097589,4.089,2641.1,2639.8,2.340869]
[1748547098123,1.2677,2641.2,2639.8,2.340869]
[1748547098428,4.088,2641.0,2639.8,2.340869]
[1748547100952,0.3158735,2640.9,2639.8,2.340869]
[1748547101245,0.3158735,2640.9,2639.9,0.0697]
[1748547101540,4.3958735,2640.9,2640.0,3.874312]
[1748547101927,0.3158735,2640.9,2640.1,4.207585]
[1748547102107,0.3158735,2640.9,2640.1,2.86083]
[1748547103018,0.3158735,2640.9,2640.1,3.3677]
[1748547104140,0.3158735,2640.9,2639.9,0.0697]
[1748547104307,0.3158735,2640.9,2640.0,2.900563]
[1748547104691,0.3158735,2640.9,2639.9,0.0697]
[1748547104919,1.2587,2640.8,2639.9,0.0697]
[1748547109875,1.1911,2641.1,2640.0,14.375263]
[1748547110009,1.1911,2641.1,2640.1,10.0]
[1748547110211,1.1911,2641.1,2640.0,4.296846]
[1748547110212,1.1911,2641.1,2640.2,10.0]
[1748547110442,1.1911,2641.1,2640.1,10.0]
[1748547110620,1.1911,2641.1,2640.2,10.0]
[1748547110838,1.1911,2641.1,2640.1,10.0]
[1748547111037,1.1911,2641.1,2640.2,3.206265]
[1748547111245,1.1911,2641.1,2640.0,28.898886]
[1748547111407,1.1911,2641.1,2640.0,13.727924]
[1748547114154,1.1911,2641.1,2640.3,1.90703688]
[1748547114354,1.1911,2641.1,2640.6,13.119472]
[1748547114522,1.1911,2641.1,2640.6,3.119472]
[1748547114851,1.1911,2641.1,2640.6,2.311472]
[1748547115149,1.1911,2641.1,2640.5,0.0697]
[1748547115970,1.1911,2641.1,2640.4,2.896365]
[1748547116514,1.1911,2641.1,2640.0,10.0]
[1748547116515,1.1911,2641.1,2640.1,13.51154]
[1748547116728,1.1911,2641.1,2640.2,10.0]
[1748547116962,1.1911,2641.1,2640.1,4.377401]
[1748547117542,1.1911,2641.1,2640.2,10.0]
[1748547117758,1.1911,2641.1,2640.3,7.084932]
[1748547117976,1.1911,2641.1,2640.2,5.629145]
[1748547120487,1.1911,2641.1,2639.4,7.763041]
[1748547120753,1.2018,2640.9,2639.4,29.016627]
[1748547120973,0.35970765,2640.8,2639.4,29.016627]
[1748547121177,5.2548,2640.9,2639.7,0.55]
[1748547121463,5.2548,2640.9,2640.1,0.0697]
[1748547121464,1.2018,2640.9,2640.1,0.0697]
[1748547121617,1.2018,2640.9,2640.2,12.923228]
[1748547122769,1.2018,2640.9,2640.4,32.374901]
[1748547122971,0.99969159,2641.9,2640.4,12.640449]
[1748547122972,1.2268,2641.8,2640.4,12.640449]
[1748547123171,1.2268,2641.5,2640.6,17.869181]
[1748547123377,1.2268,2641.5,2640.8,17.902736]
[1748547123681,1.2268,2641.5,2640.8,6.269461]
[1748547123842,1.2268,2641.5,2640.7,11.1857]
[1748547124179,1.2268,2641.5,2640.8,3.195017]
[1748547124652,1.2268,2641.5,2640.8,3.587888]
[1748547125164,1.2268,2641.5,2640.7,1.1857]
[1748547125363,1.2268,2641.5,2640.8,5.19392]
[1748547125533,1.2268,2641.5,2640.9,4.46881]
[1748547125736,1.2268,2641.5,2640.9,10.0]
[1748547125936,1.2268,2641.5,2641.0,10.0]
[1748547126142,1.2268,2641.5,2640.8,4.560464]
[1748547126357,1.2268,2641.5,2640.7,1.1857]
[1748547126928,1.2268,2641.5,2640.8,2.682064]
[1748547127557,1.2268,2641.5,2640.1,10.0697]
[1748547127741,1.2268,2641.5,2640.3,1.116]
[1748547128064,1.2725,2641.3,2640.3,1.116]
[1748547128426,1.2725,2641.1,2639.4,0.0697]
[1748547128623,0.55,2641.4,2639.9,1.116]
[1748547128624,1.2725,2640.9,2639.9,1.116]